fUSD/lending_fUSD_20240225
["ID","MTS","AMOUNT","RATE_DAILY","PERIOD"]
[315170210,1708900238768,-500.0,0.0002254,2]
[315170213,1708900238778,-500.0,0.0002254,2]
[315170214,1708900238787,-508.89095755,0.0002254,2]
[315170216,1708900238796,-500.0,0.0002254,2]
[315170219,1708900238806,-500.0,0.0002254,2]
[315170221,1708900238815,-500.0,0.0002254,2]
[315170222,1708900238824,-500.0,0.0002254,2]
[315170224,1708900238833,-500.0,0.0002254,2]
[315170227,1708900238843,-500.0,0.0002254,2]
[315170229,1708900238853,-500.0,0.0002254,2]
[315170231,1708900238862,-500.0,0.0002254,2]
[315170232,1708900238872,-500.0,0.0002254,2]
[315170235,1708900238882,-500.0,0.0002254,2]
[315170237,1708900238891,-500.0,0.0002254,2]
[315170239,1708900238900,-500.0,0.0002254,2]
[315170241,1708900238910,-500.0,0.0002254,2]
[315170243,1708900238919,-500.0,0.0002254,2]
[315170245,1708900238928,-503.34857925,0.00022541,2]
[315170247,1708900238938,-505.99706959,0.00022541,2]
[315170249,1708900238947,-503.25437751,0.00022541,2]
[315170251,1708900238958,-80.43061763,0.00022541,2]
[315170255,1708900238985,-419.56938237,0.00022541,2]
[315170257,1708900238995,-500.0,0.00022541,2]
[315170259,1708900239004,-500.0,0.00022541,2]
[315170261,1708900239013,-500.0,0.00022541,2]
[315170263,1708900239022,-500.86776568,0.00022541,2]
[315170265,1708900239031,-500.0,0.00022541,2]
[315170267,1708900239040,-507.42523715,0.00022541,2]
[315170269,1708900239049,-500.0,0.00022541,2]
[315170271,1708900239058,-406.11846865,0.00022541,2]
[315170273,1708900239067,-504.67522436,0.00022541,2]
[315170275,1708900239076,-500.0,0.00022541,2]
[315170277,1708900239085,-156.6753568,0.00022541,2]
[315170279,1708900239094,-500.0,0.00022541,2]
[315170281,1708900239103,-524.60196451,0.00022541,2]
[315170283,1708900239112,-502.32382293,0.00022541,2]
[315170285,1708900239121,-501.50384823,0.00022541,2]
[315170287,1708900239130,-500.92278647,0.00022541,2]
[315170289,1708900239139,-501.24919909,0.00022541,2]
[315170291,1708900239148,-493.01865484,0.00022541,2]
[315170293,1708900239158,-500.0,0.00022541,2]
[315170295,1708900239167,-500.0,0.00022541,2]
[315170297,1708900239177,-532.44432304,0.00022541,2]
[315170299,1708900239186,-500.0,0.00022541,2]
[315170301,1708900239195,-511.33487896,0.00022541,2]
[315170303,1708900239205,-222.53974661,0.00022541,2]
[315170305,1708900239214,-500.0,0.00022541,2]
[315170307,1708900239223,-501.65376983,0.00022541,2]
[315170309,1708900239232,-500.0,0.00022541,2]
[315170311,1708900239241,-524.49483861,0.00022541,2]
[315170313,1708900239251,-353.70511161,0.00022541,2]
[315170315,1708900239260,-218.77977145,0.00022541,2]
[315170317,1708900239269,-702.31459603,0.00022541,2]
[315170319,1708900239278,-500.0,0.00022541,2]
[315170321,1708900239288,-500.0,0.00022541,2]
[315170323,1708900239297,-502.52844222,0.00022541,2]
[315170325,1708900239306,-501.24317918,0.00022541,2]
[315170327,1708900239320,-500.0,0.00022541,2]
[315170329,1708900239330,-542.07686609,0.00022541,2]
[315170331,1708900239339,-503.56172764,0.00022541,2]
[315170333,1708900239348,-500.0,0.00022541,2]
[315170335,1708900239358,-546.26277107,0.00022541,2]
[315170337,1708900239367,-502.42106553,0.00022541,2]
[315170339,1708900239377,-500.0,0.00022541,2]
[315170341,1708900239387,-500.0,0.00022541,2]
[315170343,1708900239397,-504.54001462,0.00022541,2]
[315170346,1708900239407,-404.82463918,0.00022541,2]
[315170348,1708900239416,-500.0,0.00022541,2]
[315170350,1708900239425,-428.85381143,0.00022541,2]
[315170352,1708900239434,-500.0,0.00022541,2]
[315170353,1708900239444,-500.0,0.00022541,2]
[315170354,1708900239454,-544.81600603,0.00022541,2]
[315170355,1708900239463,-500.0,0.00022541,2]
[315170356,1708900239473,-504.6278677,0.00022541,2]
[315170357,1708900239484,-500.0,0.00022541,2]
[315170358,1708900239494,-500.0,0.00022541,2]
[315170359,1708900239504,-496.6998217,0.00022541,2]
[315170360,1708900239514,-500.0,0.00022541,2]
[315170361,1708900239523,-500.0,0.00022541,2]
[315170362,1708900239532,-500.0,0.00022541,2]
[315170363,1708900239542,-502.8561167,0.00022541,2]
[315170364,1708900239551,-602.6700823,0.00022541,2]
[315170366,1708900239561,-500.0,0.00022541,2]
[315170368,1708900239570,-502.24354722,0.00022541,2]
[315170370,1708900239579,-502.16843029,0.00022541,2]
[315170372,1708900239588,-500.0,0.00022541,2]
[315170374,1708900239597,-539.93580657,0.00022541,2]
[315170376,1708900239610,-500.0,0.00022541,2]
[315170378,1708900239619,-502.36732854,0.00022541,2]
[315170380,1708900239629,-500.0,0.00022541,2]
[315170382,1708900239638,-513.03360762,0.00022541,2]
[315170384,1708900239648,-500.0,0.00022541,2]
[315170386,1708900239658,-500.0,0.00022541,2]
[315170388,1708900239668,-500.0,0.00022541,2]
[315170390,1708900239677,-507.53678305,0.00022541,2]
[315170392,1708900239687,-500.0,0.00022541,2]
[315170395,1708900239696,-358.01194617,0.00022541,2]
[315170396,1708900239705,-587.50203698,0.00022541,2]
[315170398,1708900239714,-323.57562975,0.00022541,2]
[315170401,1708900239723,-500.0,0.00022541,2]
[315170402,1708900239732,-500.0,0.00022541,2]
[315170404,1708900239741,-503.46674003,0.00022541,2]
[315170407,1708900239751,-500.0,0.00022541,2]
[315170409,1708900239760,-502.65670972,0.00022541,2]
[315170411,1708900239770,-500.0,0.00022541,2]
[315170413,1708900239779,-500.0,0.00022541,2]
[315170414,1708900239788,-500.0,0.00022541,2]
[315170417,1708900239798,-500.0,0.00022541,2]
[315170418,1708900239807,-500.0,0.00022541,2]
[315170420,1708900239816,-513.1591582,0.00022541,2]
[315170423,1708900239826,-503.87754222,0.00022541,2]
[315170425,1708900239834,-500.0,0.00022541,2]
[315170427,1708900239844,-511.88154928,0.00022541,2]
[315170428,1708900239853,-502.76957928,0.00022541,2]
[315170431,1708900239863,-500.0,0.00022541,2]
[315170433,1708900239871,-500.0,0.00022541,2]
[315170435,1708900239880,-502.34579514,0.00022541,2]
[315170437,1708900239889,-502.4903213,0.00022541,2]
[315170439,1708900239898,-504.52750831,0.00022541,2]
[315170441,1708900239908,-500.0,0.00022541,2]
[315170443,1708900239917,-500.0,0.00022541,2]
[315170445,1708900239926,-500.0,0.00022541,2]
[315170447,1708900239935,-505.4856525,0.00022541,2]
[315170449,1708900239944,-500.0,0.00022541,2]
[315170451,1708900239953,-500.0,0.00022541,2]
[315170453,1708900239962,-508.45269225,0.00022541,2]
[315170455,1708900239971,-502.03121829,0.00022541,2]
[315170457,1708900239981,-176.44971157,0.00022541,2]
[315170459,1708900239990,-602.07406914,0.00022541,2]
[315170461,1708900239999,-502.41148815,0.00022541,2]
[315170463,1708900240007,-500.0,0.00022541,2]
[315170466,1708900240016,-503.62109915,0.00022541,2]
[315170468,1708900240025,-500.0,0.00022541,2]
[315170470,1708900240034,-503.21046129,0.00022541,2]
[315170472,1708900240043,-500.0,0.00022541,2]
[315170474,1708900240052,-509.59457177,0.00022541,2]
[315170476,1708900240061,-442.39272935,0.00022541,2]
[315170477,1708900240070,-500.0,0.00022541,2]
[315170480,1708900240080,-500.37610048,0.00022541,2]
[315170482,1708900240090,-570.94572286,0.00022541,2]
[315170484,1708900240099,-510.85167035,0.00022541,2]
[315170486,1708900240108,-500.0,0.00022541,2]
[315170488,1708900240118,-500.0,0.00022541,2]
[315170490,1708900240127,-500.0,0.00022541,2]
[315170492,1708900240136,-500.0,0.00022541,2]
[315170494,1708900240145,-506.56950255,0.00022541,2]
[315170496,1708900240154,-500.0,0.00022541,2]
[315170498,1708900240163,-500.0,0.00022541,2]
[315170500,1708900240172,-500.91890741,0.00022541,2]
[315170502,1708900240181,-213.55095904,0.00022541,2]
[315170504,1708900240190,-500.0,0.00022541,2]
[315170506,1708900240199,-525.230075,0.00022541,2]
[315170508,1708900240209,-500.0,0.00022541,2]
[315170510,1708900240218,-324.68416836,0.00022541,2]
[315170512,1708900240227,-500.0,0.00022541,2]
[315170513,1708900240237,-500.0,0.00022541,2]
[315170515,1708900240246,-500.0,0.00022541,2]
[315170517,1708900240256,-500.0,0.00022541,2]
[315170520,1708900240266,-394.41208819,0.00022541,2]
[315170522,1708900240275,-364.01189772,0.00022541,2]
[315170524,1708900240285,-500.0,0.00022541,2]
[315170526,1708900240294,-500.0,0.00022541,2]
[315170528,1708900240303,-503.58812353,0.00022541,2]
[315170530,1708900240314,-316.97699959,0.00022541,2]
[315170532,1708900240325,-500.0,0.00022541,2]
[315170534,1708900240334,-370.63992399,0.00022541,2]
[315170536,1708900240343,-500.0,0.00022541,2]
[315170538,1708900240353,-179.74333447,0.00022541,2]
[315170539,1708900240362,-500.0,0.00022541,2]
[315170541,1708900240371,-563.04594325,0.00022541,2]
[315170543,1708900240380,-500.0,0.00022541,2]
[315170545,1708900240389,-500.0,0.00022541,2]
[315170547,1708900240400,-500.0,0.00022541,2]
[315170549,1708900240409,-500.0,0.00022541,2]
[315170551,1708900240419,-500.0,0.00022541,2]
[315170553,1708900240428,-500.0,0.00022541,2]
[315170555,1708900240438,-209.45981824,0.00022541,2]
[315170557,1708900240446,-502.07820547,0.00022541,2]
[315170559,1708900240456,-500.0,0.00022541,2]
[315170561,1708900240465,-500.0,0.00022541,2]
[315170563,1708900240474,-193.39637877,0.00022541,2]
[315170565,1708900240483,-500.0,0.00022541,2]
[315170567,1708900240492,-500.0,0.00022541,2]
[315170569,1708900240502,-500.0,0.00022541,2]
[315170571,1708900240511,-501.49617347,0.00022541,2]
[315170573,1708900240520,-285.57961781,0.00022541,2]
[315170575,1708900240529,-500.0,0.00022541,2]
[315170577,1708900240538,-163.26,0.00022551,2]
[315170579,1708900240547,-796.01668416,0.00022555,2]
[315170581,1708900240556,-523.48077292,0.00022568,2]
[315170583,1708900240565,-500.0,0.00022569,2]
[315170585,1708900240575,-163.45894624,0.0002258,2]
[315170587,1708900240584,-394.88912468,0.00022609,2]
[315170589,1708900240593,-500.0,0.00022619,2]
[315170591,1708900240603,-586.69,0.00022619,2]
[315170593,1708900240612,-496.01,0.00022619,2]
[315170595,1708900240621,-500.0,0.00022619,2]
[315170597,1708900240630,-209.71,0.00022619,2]
[315170599,1708900240639,-500.0,0.00022619,2]
[315170601,1708900240649,-500.0,0.00022619,2]
[315170603,1708900240658,-500.0,0.00022619,2]
[315170605,1708900240667,-500.0,0.00022619,2]
[315170607,1708900240676,-500.0,0.00022619,2]
[315170610,1708900240686,-500.0,0.00022619,2]
[315170612,1708900240695,-500.0,0.00022619,2]
[315170614,1708900240703,-440.52455104,0.00022619,2]
[315170616,1708900240712,-500.0,0.00022619,2]
[315170618,1708900240722,-500.0,0.00022619,2]
[315170620,1708900240732,-500.0,0.00022619,2]
[315170622,1708900240741,-500.0,0.00022619,2]
[315170624,1708900240750,-500.0,0.00022619,2]
[315170626,1708900240759,-500.0,0.00022619,2]
[315170628,1708900240768,-643.36,0.00022619,2]
[315170630,1708900240777,-500.0,0.00022619,2]
[315170632,1708900240786,-500.0,0.00022619,2]
[315170633,1708900240794,-500.0,0.00022619,2]
[315170636,1708900240804,-500.0,0.00022619,2]
[315170638,1708900240813,-500.0,0.00022619,2]
[315170639,1708900240823,-500.0,0.00022619,2]
[315170641,1708900240832,-500.0,0.00022619,2]
[315170643,1708900240841,-500.0,0.00022619,2]
[315170645,1708900240850,-500.0,0.00022619,2]
[315170648,1708900240860,-500.0,0.00022619,2]
[315170650,1708900240869,-500.0,0.00022619,2]
[315170652,1708900240879,-500.0,0.00022619,2]
[315170654,1708900240888,-500.0,0.00022619,2]
[315170656,1708900240896,-500.0,0.00022619,2]
[315170658,1708900240905,-500.0,0.00022619,2]
[315170660,1708900240914,-500.0,0.00022619,2]
[315170662,1708900240923,-500.0,0.00022619,2]
[315170664,1708900240932,-304.99,0.00022619,2]
[315170665,1708900240941,-465.64,0.00022619,2]
[315170667,1708900240950,-500.0,0.00022619,2]
[315170670,1708900240960,-500.0,0.00022619,2]
[315170671,1708900240969,-500.0,0.00022619,2]
[315170673,1708900240980,-500.0,0.00022619,2]
[315170676,1708900240990,-500.0,0.00022619,2]
[315170678,1708900241000,-500.0,0.00022619,2]
[315170680,1708900241010,-500.0,0.00022619,2]
[315170682,1708900241020,-500.0,0.00022619,2]
[315170684,1708900241029,-500.0,0.00022619,2]
[315170686,1708900241038,-500.0,0.00022619,2]
[315170688,1708900241048,-500.0,0.00022619,2]
[315170690,1708900241057,-500.0,0.00022619,2]
[315170692,1708900241067,-220.69416382,0.0002262,2]
[315170694,1708900241076,-500.0,0.0002262,2]
[315170696,1708900241085,-500.0,0.0002262,2]
[315170698,1708900241094,-500.0,0.0002262,2]
[315170700,1708900241103,-159.91,0.0002262,2]
[315170702,1708900241112,-500.0,0.0002262,2]
[315170704,1708900241121,-500.0,0.0002262,2]
[315170706,1708900241130,-500.0,0.0002262,2]
[315170708,1708900241139,-500.0,0.0002262,2]
[315170710,1708900241148,-500.0,0.0002262,2]
[315170712,1708900241157,-500.0,0.0002262,2]
[315170714,1708900241167,-500.0,0.0002262,2]
[315170716,1708900241176,-500.0,0.0002262,2]
[315170718,1708900241185,-440.41382092,0.0002262,2]
[315170720,1708900241194,-500.0,0.0002262,2]
[315170722,1708900241203,-500.0,0.0002262,2]
[315170724,1708900241212,-500.0,0.0002262,2]
[315170726,1708900241221,-500.0,0.0002262,2]
[315170728,1708900241231,-500.0,0.0002262,2]
[315170730,1708900241241,-500.0,0.0002262,2]
[315170732,1708900241250,-500.0,0.0002262,2]
[315170734,1708900241259,-500.0,0.0002262,2]
[315170736,1708900241268,-500.0,0.0002262,2]
[315170738,1708900241277,-500.0,0.0002262,2]
[315170740,1708900241286,-500.0,0.0002262,2]
[315170742,1708900241296,-500.0,0.0002262,2]
[315170744,1708900241305,-512.49593999,0.0002262,2]
[315170746,1708900241316,-500.0,0.0002262,2]
[315170748,1708900241326,-514.2443958,0.0002262,2]
[315170750,1708900241336,-502.61355767,0.0002262,2]
[315170752,1708900241345,-510.3927777,0.0002262,2]
[315170754,1708900241354,-524.10525622,0.0002262,2]
[315170757,1708900241365,-500.0,0.0002262,2]
[315170759,1708900241374,-500.0,0.0002262,2]
[315170761,1708900241384,-500.0,0.0002262,2]
[315170763,1708900241395,-500.0,0.0002262,2]
[315170765,1708900241404,-500.0,0.0002262,2]
[315170767,1708900241412,-500.0,0.0002262,2]
[315170769,1708900241422,-418.75,0.0002262,2]
[315170771,1708900241433,-500.0,0.0002262,2]
[315170773,1708900241442,-500.0,0.0002262,2]
[315170775,1708900241451,-500.0,0.0002262,2]
[315170777,1708900241461,-500.0,0.0002262,2]
[315170778,1708900241473,-500.0,0.0002262,2]
[315170781,1708900241483,-500.0,0.0002262,2]
[315170783,1708900241493,-500.0,0.0002262,2]
[315170785,1708900241502,-500.0,0.0002262,2]
[315170787,1708900241511,-500.0,0.0002262,2]
[315170789,1708900241520,-338.17134366,0.0002262,2]
[315170790,1708900241529,-500.0,0.0002262,2]
[315170792,1708900241538,-500.0,0.0002262,2]
[315170794,1708900241547,-514.32,0.0002262,2]
[315170797,1708900241556,-500.0,0.0002262,2]
[315170799,1708900241566,-500.0,0.0002262,2]
[315170801,1708900241574,-500.0,0.0002262,2]
[315170803,1708900241583,-500.0,0.0002262,2]
[315170804,1708900241592,-500.0,0.0002262,2]
[315170806,1708900241601,-500.0,0.0002262,2]
[315170808,1708900241611,-500.0,0.0002262,2]
[315170811,1708900241620,-194.65,0.0002262,2]
[315170813,1708900241629,-500.0,0.0002262,2]
[315170815,1708900241638,-500.0,0.0002262,2]
[315170816,1708900241647,-500.0,0.0002262,2]
[315170819,1708900241657,-500.0,0.0002262,2]
[315170821,1708900241666,-500.0,0.0002262,2]
[315170823,1708900241675,-500.0,0.0002262,2]
[315170825,1708900241684,-500.0,0.0002262,2]
[315170826,1708900241693,-500.0,0.0002262,2]
[315170829,1708900241703,-500.0,0.0002262,2]
[315170831,1708900241713,-500.0,0.0002262,2]
[315170833,1708900241722,-500.0,0.0002262,2]
[315170835,1708900241731,-500.0,0.0002262,2]
[315170837,1708900241741,-500.0,0.0002262,2]
[315170839,1708900241750,-500.0,0.0002262,2]
[315170841,1708900241759,-500.0,0.0002262,2]
[315170843,1708900241769,-500.0,0.0002262,2]
[315170845,1708900241778,-500.0,0.0002262,2]
[315170847,1708900241787,-500.0,0.0002262,2]
[315170849,1708900241796,-500.0,0.0002262,2]
[315170851,1708900241806,-500.0,0.0002262,2]
[315170853,1708900241815,-500.0,0.0002262,2]
[315170855,1708900241824,-500.0,0.0002262,2]
[315170857,1708900241833,-500.0,0.0002262,2]
[315170859,1708900241842,-500.0,0.0002262,2]
[315170861,1708900241851,-500.0,0.0002262,2]
[315170863,1708900241860,-500.0,0.0002262,2]
[315170865,1708900241869,-525.95485031,0.0002262,2]
[315170867,1708900241879,-500.0,0.0002262,2]
[315170869,1708900241889,-33712.0066,0.00022621,2]
[315170871,1708900241899,-29123.9275,0.00022621,2]
[315170873,1708900241908,-160.36,0.00022648,2]
[315170875,1708900241918,-502.7069096,0.00022668,2]
[315170877,1708900241927,-375.42205378,0.00022668,2]
[315170879,1708900241936,-502.2040757,0.00022668,2]
[315170881,1708900241945,-500.0,0.00022668,2]
[315170883,1708900241954,-507.16614857,0.00022668,2]
[315170894,1708900242138,-500.0,0.00022668,2]
[315170896,1708900242148,-500.0,0.00022668,2]
[315170898,1708900242157,-500.0,0.00022668,2]
[315170900,1708900242166,-500.0,0.00022668,2]
[315170902,1708900242176,-508.84642281,0.00022668,2]
[315170904,1708900242185,-500.0,0.00022668,2]
[315170906,1708900242195,-502.42590821,0.00022668,2]
[315170908,1708900242205,-500.0,0.00022668,2]
[315170911,1708900242214,-408.7294573,0.00022668,2]
[315170913,1708900242225,-500.0,0.00022668,2]
[315170915,1708900242234,-500.0,0.00022668,2]
[315170917,1708900242244,-512.32442604,0.00022668,2]
[315170919,1708900242254,-500.0,0.00022668,2]
[315170921,1708900242264,-500.0,0.00022668,2]
[315170923,1708900242273,-503.82005875,0.00022668,2]
[315170925,1708900242282,-505.2841641,0.00022668,2]
[315170927,1708900242291,-500.0,0.00022668,2]
[315170929,1708900242300,-527.88041885,0.00022668,2]
[315170931,1708900242310,-500.0,0.00022668,2]
[315170933,1708900242322,-500.0,0.00022668,2]
[315170935,1708900242331,-500.0,0.00022668,2]
[315170937,1708900242340,-500.0,0.00022668,2]
[315170939,1708900242349,-500.0,0.00022668,2]
[315170942,1708900242358,-500.0,0.00022668,2]
[315170944,1708900242368,-500.0,0.00022668,2]
[315170946,1708900242377,-500.0,0.00022668,2]
[315170948,1708900242386,-500.0,0.00022668,2]
[315170950,1708900242396,-513.930352,0.00022668,2]
[315170952,1708900242406,-500.0,0.00022668,2]
[315170954,1708900242416,-500.0,0.00022668,2]
[315170956,1708900242425,-503.29691829,0.00022668,2]
[315170958,1708900242435,-500.0,0.00022668,2]
[315170960,1708900242444,-555.60316394,0.00022668,2]
[315170962,1708900242453,-500.0,0.00022668,2]
[315170964,1708900242462,-500.0,0.00022668,2]
[315170966,1708900242471,-532.59207618,0.00022668,2]
[315170968,1708900242481,-500.0,0.00022668,2]
[315170970,1708900242490,-500.0,0.00022668,2]
[315170972,1708900242499,-227.90248156,0.00022668,2]
[315170974,1708900242508,-500.0,0.00022668,2]
[315170976,1708900242517,-500.0,0.00022668,2]
[315170978,1708900242527,-500.0,0.00022668,2]
[315170980,1708900242536,-500.0,0.00022668,2]
[315170982,1708900242545,-500.0,0.00022668,2]
[315170984,1708900242554,-500.0,0.00022668,2]
[315170986,1708900242563,-500.0,0.00022668,2]
[315170988,1708900242573,-500.0,0.00022668,2]
[315170990,1708900242584,-500.0,0.00022668,2]
[315170992,1708900242593,-500.0,0.00022668,2]
[315170994,1708900242602,-500.0,0.00022668,2]
[315170996,1708900242611,-500.0,0.00022668,2]
[315170998,1708900242621,-500.0,0.00022668,2]
[315171000,1708900242630,-500.0,0.00022668,2]
[315171002,1708900242639,-500.0,0.00022668,2]
[315171004,1708900242648,-500.0,0.00022668,2]
[315171006,1708900242657,-500.0,0.00022668,2]
[315171008,1708900242666,-500.0,0.00022668,2]
[315171010,1708900242675,-500.0,0.00022668,2]
[315171012,1708900242685,-500.0,0.00022668,2]
[315171014,1708900242694,-500.0,0.00022668,2]
[315171016,1708900242703,-500.0,0.00022668,2]
[315171018,1708900242712,-500.0,0.00022668,2]
[315171020,1708900242720,-500.0,0.00022668,2]
[315171022,1708900242729,-500.0,0.00022668,2]
[315171024,1708900242740,-273.49228469,0.00022668,2]
[315171026,1708900242749,-532.13911625,0.00022668,2]
[315171028,1708900242758,-500.0,0.00022668,2]
[315171030,1708900242767,-500.0,0.00022668,2]
[315171032,1708900242776,-500.0,0.00022668,2]
[315171034,1708900242785,-500.0,0.00022668,2]
[315171036,1708900242793,-500.0,0.00022668,2]
[315171038,1708900242803,-519.38932451,0.00022668,2]
[315171040,1708900242812,-500.0,0.00022668,2]
[315171042,1708900242821,-500.0,0.00022668,2]
[315171045,1708900242830,-505.56083128,0.00022668,2]
[315171047,1708900242840,-500.0,0.00022668,2]
[315171049,1708900242849,-500.0,0.00022668,2]
[315171051,1708900242858,-500.0,0.00022668,2]
[315171054,1708900242878,-500.0,0.00022668,2]
[315171056,1708900242890,-500.0,0.00022668,2]
[315171058,1708900242900,-500.0,0.00022668,2]
[315171060,1708900242910,-500.0,0.00022668,2]
[315171062,1708900242920,-500.0,0.00022668,2]
[315171064,1708900242930,-500.0,0.00022668,2]
[315171066,1708900242939,-500.0,0.00022668,2]
[315171069,1708900242949,-500.0,0.00022668,2]
[315171071,1708900242959,-500.0,0.00022668,2]
[315171073,1708900242968,-500.0,0.00022668,2]
[315171075,1708900242979,-500.0,0.00022668,2]
[315171077,1708900242989,-500.0,0.00022668,2]
[315171079,1708900242998,-500.0,0.00022668,2]
[315171081,1708900243008,-500.0,0.00022668,2]
[315171083,1708900243018,-503.45574224,0.00022668,2]
[315171085,1708900243027,-500.0,0.00022668,2]
[315171087,1708900243037,-500.0,0.00022668,2]
[315171089,1708900243047,-500.0,0.00022668,2]
[315171091,1708900243056,-480.12924905,0.00022668,2]
[315171093,1708900243066,-511.58380753,0.00022668,2]
[315171095,1708900243076,-523.03413198,0.00022668,2]
[315171097,1708900243085,-500.0,0.00022668,2]
[315171099,1708900243095,-500.0,0.00022668,2]
[315171101,1708900243104,-500.0,0.00022668,2]
[315171104,1708900243114,-500.0,0.00022668,2]
[315171106,1708900243123,-500.68,0.00022668,2]
[315171108,1708900243134,-500.0,0.00022668,2]
[315171110,1708900243143,-500.0,0.00022668,2]
[315171112,1708900243153,-500.0,0.00022668,2]
[315171114,1708900243163,-500.0,0.00022668,2]
[315171116,1708900243173,-500.0,0.00022668,2]
[315171118,1708900243182,-500.0,0.00022668,2]
[315171120,1708900243193,-500.0,0.00022668,2]
[315171122,1708900243202,-500.0,0.00022668,2]
[315171124,1708900243213,-500.0,0.00022668,2]
[315171126,1708900243222,-500.0,0.00022668,2]
[315171128,1708900243232,-505.61235476,0.00022668,2]
[315171130,1708900243241,-509.00719528,0.00022668,2]
[315171132,1708900243251,-500.0,0.00022668,2]
[315171134,1708900243260,-500.0,0.00022668,2]
[315171136,1708900243270,-500.0,0.00022668,2]
[315171139,1708900243280,-500.0,0.00022668,2]
[315171141,1708900243289,-509.29566072,0.00022668,2]
[315171143,1708900243299,-500.0,0.00022668,2]
[315171145,1708900243309,-529.63141549,0.00022668,2]
[315171147,1708900243319,-500.0,0.00022668,2]
[315171149,1708900243330,-566.97988643,0.00022668,2]
[315171151,1708900243340,-500.0,0.00022668,2]
[315171153,1708900243349,-505.31906683,0.00022668,2]
[315171155,1708900243360,-500.0,0.00022668,2]
[315171157,1708900243370,-500.0,0.00022668,2]
[315171159,1708900243380,-500.0,0.00022668,2]
[315171161,1708900243390,-500.0,0.00022668,2]
[315171163,1708900243402,-512.22272494,0.00022668,2]
[315171165,1708900243412,-500.0,0.00022668,2]
[315171167,1708900243421,-500.0,0.00022668,2]
[315171169,1708900243430,-500.0,0.00022668,2]
[315171171,1708900243440,-512.08575584,0.00022668,2]
[315171174,1708900243450,-509.03216785,0.00022668,2]
[315171176,1708900243459,-417.99686501,0.00022668,2]
[315171178,1708900243471,-500.0,0.00022668,2]
[315171180,1708900243481,-500.0,0.00022668,2]
[315171182,1708900243490,-503.69715135,0.00022668,2]
[315171184,1708900243499,-500.0,0.00022668,2]
[315171186,1708900243508,-500.0,0.00022668,2]
[315171188,1708900243517,-506.1237944,0.00022668,2]
[315171190,1708900243527,-515.40970482,0.00022668,2]
[315171192,1708900243535,-500.0,0.00022668,2]
[315171194,1708900243545,-517.11275279,0.00022668,2]
[315171196,1708900243555,-523.90117579,0.00022668,2]
[315171198,1708900243564,-500.0,0.00022668,2]
[315171200,1708900243574,-498.45188318,0.00022668,2]
[315171202,1708900243583,-510.73290823,0.00022668,2]
[315171204,1708900243593,-517.3809233,0.00022668,2]
[315171206,1708900243602,-500.0,0.00022668,2]
[315171208,1708900243611,-501.87647111,0.00022668,2]
[315171210,1708900243621,-500.0,0.00022668,2]
[315171212,1708900243630,-504.55175381,0.00022668,2]
[315171214,1708900243640,-500.0,0.00022668,2]
[315171216,1708900243649,-500.0,0.00022668,2]
[315171218,1708900243658,-504.01315214,0.00022668,2]
[315171221,1708900243668,-513.21556363,0.00022668,2]